{"text_format":"1","workbook":"xlsx","n_sheets":2,"sheets":["Test","Sheet1"],"not_rendered":{"charts":0,"images":0,"macros":1,"external_links":0,"defined_names":0,"comments":0,"pivot_tables":0},"unopened":[],"bounds":{"document_bytes":16777216,"sheet_cells":100000,"rows_first":2000,"rows_last":500,"rows_between":2000,"halvings":0,"cell_chars":16384,"cell_head_chars":4096},"cells_cut":0,"cells_raw":0,"read":"whole","date_system":"1900"}

{"sheet":"Test","index":0,"n_rows":21,"n_cols":15,"rows_kept":21,"cut":false,"hidden":false,"merged":[]}
["Heure de la période de calcul","Entrée","Sortie","Accumulation 1","Accumulation 2","Accumulation 3","Accumulation 4","Accumulation 5","Accumulation 6","Accumulation 7","Accumulation 8","Accumulation 9","Accumulation 10","Accumulation","formule"]
[{"$f":"B2","v":2.2999999999999998},2.2999999999999998,3,1,null,null,null,null,1,null,1,null,null,3,{"$f":"SUM(D2:M2)","v":3}]
[{"$f":"A2+($C$11-$B$2)/10","v":2.57},3,3.5,1,null,null,null,null,1,null,1,null,null,3,{"$f":"SUM(D3:M3)","v":3}]
[{"$f":"A3+($C$11-$B$2)/10","v":2.84},3,4,1,null,null,null,null,1,null,1,null,null,3,3]
[3.11,3,5,null,1,1,1,null,1,1,1,1,null,7,7]
[3.38,4,5,null,1,1,1,null,1,1,1,1,null,7,7]
[3.65,2,4,null,null,1,1,null,1,1,1,1,null,6,6]
[3.92,3,4,null,null,1,1,null,1,1,1,1,null,6,6]
[4.1899999999999995,1,5,null,null,null,1,1,null,null,1,1,1,5,5]
[4.4599999999999991,3,5,null,null,null,1,1,null,null,1,1,1,5,5]
[{"$f":"C11","v":5},4,5,null,null,null,1,1,null,null,1,1,1,5,5]
[null,null,null,"TOTAL",{"$f":"SUM(E2:E11)","v":2},{"$f":"SUM(F2:F11)","v":4},7,3,7,4,10,7,3]
[]
[null,"OBJECTIF: POUR CHAQUE HEURE (COLONNE), TESTER SI LE VÉHICULE EST DANS LE PARKING (Heure colonne A supérieure ou égale à son heure d'entrée et inférieure ou égale à son heure de sortie)"]
[null,"Pour chaque heure (colonne A), on indique le nombre de fois qu'un véhicule est présent dans le parking (colonne N)"]
[null,"Les colonnes D à M indique le calcul pas à pas, la macro teste chaque ligne. Par exemple, le deuxième véhicule est entrée à 3h et sortie à 3.5h alors il n'est pas là à 2.57 h (alors colonne D3 est vide). mais il se trouve dans le prking à 2.84, 3.11 et 3.38 (colonne D), on doit donc des valeurs dans E5 et E6"]
[null,"Le dernier véhicule qui y est entrée à 4 et sortie à 5, lui, est là dseulement pour les temps 4.19, 4.46 et 5 (cellules M9, M10 et M11)"]
[null,"On peut le tester ainsi si on n'a pas un grand nombre de lignes sinon ça devient impossible…"]
[null,"NB: c'est moi qui définis les valeurs de la colonne A pour m'assurer que celles-ci couvrent la période des entrées et des sorties."]
[]
[null,"La formule de la macro trouve la bon nombre d'accumulation (colonne N), car on a les mêmes chiffres que la colonne O qui fait simplement la somme des colonnes D et M."]

{"sheet":"Sheet1","index":1,"n_rows":0,"n_cols":0,"rows_kept":0,"cut":false,"hidden":false,"merged":[]}